Cogmind - Beta 13 @@@ ROGUE MODE // 2024.04.06 @ 18:06:23 Player: Rougue Result: Destroyed by S-27 Virus with Autogun Performance ------------- Evolutions (4) 2000 Regions Visited (12) 2400 Robots Destroyed (79) 395 Value Destroyed (2341) 2341 Prototype IDs (36) 720 Alien Tech Used (0) 0 Bonus (300) 300 TOTAL SCORE: 8156 Bonus ------- Aligned with FarCom 300 Cogmind --------- Core Integrity 0/850 Matter 191/300 Energy 100/100 System Corruption 0% Temperature Cool (0) Movement Core (50) Location -6/Extension Parts ------- > --- POWER (1) -------- (None) > --- PROPULSION (5) --- (None) > --- UTILITY (7) ------ Hacking Suite Improved System Shield > --- WEAPON (2) ------- (None) > --- INVENTORY (5) ---- Light Deuterium Engine Improved Cloaking Device Hacking Suite System Shield Enhanced Autogun Peak State ------------ > --- POWER ------------ Heavy Deuterium Engine > --- PROPULSION ------- Medium Treads Medium Treads Medium Treads Medium Treads Medium Treads > --- UTILITY ---------- Lightpack 2.0 Hacking Suite Hacking Suite Makeshift System Shield > --- WEAPON ----------- Field Laser Shock Maul > --- INVENTORY -------- Ion Engine Light Ion Engine Light Deuterium Engine Heavy Deuterium Engine Compact Matter Pod Launcher Guidance Computer Improved Cloaking Device Hacking Suite System Shield System Shield Enhanced Autogun Enhanced Autogun Enhanced Autogun Enhanced Autogun Enhanced Autogun Heavy Machine Gun Slug Cannon [Rating: 80] Favorites ----------- Power Ion Engine Engine Ion Engine Power Core Light Nuclear Core Propulsion Light Treads Treads Light Treads Leg Carbon-fiber Leg Wheel Armored Wheel Flight Unit Cesium-ion Thruster Utility Hacking Suite Device ECM Suite Storage Lightpack 2.0 Hackware Hacking Suite Weapon Enhanced Autogun Energy Gun Field Laser Ballistic Gun Enhanced Autogun Ballistic Cannon Slug Cannon Launcher Heavy Missile Launcher Special Weapon Remote Datajack Impact Weapon Shock Maul Build | -11 -10 -10 -10 -9 -8 -7 -7 -7 -6 -6 -6 -6 ------- Run | Yrd Mat Min Exi Min Mat Fac Low Low Fac Was Fac Ext Slots Evolved 8 | . . . . . 4 2 . . 2 . . . Power . | . . . . . . . . . . . . . Propulsion 3 | . . . . . 2 . . . 1 . . . Utility 5 | . . . . . 2 2 . . 1 . . . Weapon . | . . . . . . . . . . . . . Parts Attached 119 | 6 21 5 4 4 22 13 12 . 8 . 12 12 Power 14 | 1 1 . 1 . 2 1 3 . 2 . 1 2 Engine 8 | 1 1 . 1 . 1 . 2 . . . 1 1 Core 6 | . . . . . 1 1 1 . 2 . . 1 Reactor . | . . . . . . . . . . . . . Propulsion 41 | 2 3 . 1 1 7 10 4 . 2 . 6 5 Treads 18 | 2 3 . 1 . 7 . . . . . 5 . Leg 6 | . . . . . . . . . . . 1 5 Wheel 12 | . . . . 1 . 5 4 . 2 . . . Hover . | . . . . . . . . . . . . . Flight 5 | . . . . . . 5 . . . . . . Utility 16 | 1 3 . 1 2 2 2 2 . 1 . 1 1 Device 5 | . 2 . 1 1 . . . . 1 . . . Storage 4 | 1 1 . . 1 1 . . . . . . . Processor . | . . . . . . . . . . . . . Hackware 7 | . . . . . 1 2 2 . . . 1 1 Protection . | . . . . . . . . . . . . . Artifact . | . . . . . . . . . . . . . Weapon 48 | 2 14 5 1 1 11 . 3 . 3 . 4 4 Energy Gun 2 | . . . . . 1 . . . . . 1 . Energy Cannon . | . . . . . . . . . . . . . Ballistic Gun 23 | 2 7 1 1 1 6 . 1 . 1 . 1 2 Ballistic Cannon 4 | . . 1 . . 2 . . . . . . 1 Launcher 16 | . 7 3 . . 2 . 2 . 2 . . . Special Weapon 1 | . . . . . . . . . . . 1 . Impact Weapon 2 | . . . . . . . . . . . 1 1 Slashing Weapon . | . . . . . . . . . . . . . Piercing Weapon . | . . . . . . . . . . . . . Special Melee Weapon . | . . . . . . . . . . . . . Unidentified Prototypes 4 | . . . . . 3 . . . . . 1 . Parts Lost 40 | . 2 2 . . 2 . 7 1 2 3 1 20 Power 7 | . 1 . . . . . 1 1 1 . . 3 Propulsion 18 | . 1 . . . 1 . 4 . . 2 . 10 Utility 7 | . . . . . 1 . 2 . 1 . 1 2 Weapon 8 | . . 2 . . . . . . . 1 . 5 Highest Loss Streak 10 | . 2 2 . . 2 . 3 1 2 2 1 10 To Critical Strikes 1 | . . . . . . . . . . . . 1 Average Slot Usage (%) 79 | . 97 93 57 86 77 83 80 68 73 54 70 71 Engine 6 | . 14 13 14 14 5 . 5 2 . . 5 3 Core 1 | . . . . . 3 6 1 . 5 4 . 1 Treads 18 | . 27 26 14 14 32 . . . . . 28 19 Leg 1 | . . . . . . . . . . . . 10 Wheel 7 | . . . . 11 . 26 16 19 25 15 . . Flight 1 | . . . . . . 3 10 . . . . . Device 5 | . 12 13 14 14 5 . . . 5 4 . . Storage 8 | . 14 13 . 10 9 7 7 7 6 6 6 5 Hackware 10 | . . . . . 3 22 22 23 15 13 18 15 Ballistic Gun 12 | . 26 2 14 21 12 15 11 7 4 . 2 8 Ballistic Cannon 1 | . . 12 . . 5 . . . . . . . Launcher 1 | . 1 10 . . . . 2 7 8 7 . . Naked Turns 21 | . . 21 . . . . . . . . . . Heaviest Build 33 | 12 33 33 8 19 26 22 22 18 28 28 22 22 Greatest Support 140 | 40 40 40 20 20 83 80 48 48 48 48 140 140 Greatest Overweight (x) 1 | . . . . 1 1 . 1 . . 1 1 1 Average Overweight (x) . | . . . . . . . . . . . . . Largest Inventory Capacity 40 | 8 15 15 5 10 40 40 40 40 40 40 40 40 Average Capacity 31 | 6 13 14 5 8 39 40 40 40 40 40 40 39 Most Carried 28 | 4 11 11 4 8 28 28 24 18 19 15 18 18 Average Carried 14 | 2 8 10 2 6 18 23 20 18 14 14 17 16 Final Capacity 40 | 8 15 5 5 10 40 40 40 40 40 40 40 5 Final Carried 28 | 4 11 5 4 8 28 23 18 18 14 15 18 5 Class Distribution -------------------- 66% | Hauler-Mutant 30% | Mutant 3% | Hauler-Sprinter Dominant Class ---------------- Mutant | -10/Materials Mutant | -10/Mines Mutant | -10/Exiles Mutant | -9/Mines Hauler-Mutant | -8/Materials Hauler-Mutant | -7/Factory Hauler-Mutant | -7/Lower Caves Hauler-Mutant | -7/Lower Caves Hauler-Mutant | -6/Factory Hauler-Mutant | -6/Waste Hauler-Mutant | -6/Factory Hauler-Mutant | -6/Extension Resources | -11 -10 -10 -10 -9 -8 -7 -7 -7 -6 -6 -6 -6 ----------- Run | Yrd Mat Min Exi Min Mat Fac Low Low Fac Was Fac Ext Matter Collected 2799 | 190 499 116 . 182 607 91 469 2 45 . 240 358 Remotely . | . . . . . . . . . . . . . Salvage Created 2315 | . 433 67 . 45 681 118 328 1 59 . 181 402 Parts 145 | . 33 10 . 5 46 11 10 . 4 . 9 17 Haulers Intercepted 3 | . 2 . . . 1 . . . . . . . Recyclers Shooed 2 | 1 . . . . . . . . . . . 1 Parts Field Recycled . | . . . . . . . . . . . . . Retrieved Matter . | . . . . . . . . . . . . . Parts Self-Destructed 13 | . . . . . . . 13 . . . . . Prevented 1 | . . . . . . . 1 . . . . . Kills | -11 -10 -10 -10 -9 -8 -7 -7 -7 -6 -6 -6 -6 ------- Run | Yrd Mat Min Exi Min Mat Fac Low Low Fac Was Fac Ext Combat Hostiles Destroyed 63 | . 9 9 . 3 15 2 11 1 1 . 5 7 Guns 34 | . 6 1 . 3 6 2 6 . . . 5 5 Cannons 8 | . . 3 . . 5 . . . . . . . AOE 19 | . 3 5 . . 4 . 5 1 1 . . . Classes Destroyed 12 | . 7 . . . 3 . . 1 1 . . . Worker 2 | . . . . . . . . . 2 . . . Builder 3 | . 1 . . . 2 . . . . . . . Hauler 3 | . 2 . . . 1 . . . . . . . Recycler 4 | . 2 . . . 2 . . . . . . . Operator 2 | . 1 . . . . 1 . . . . . . Watcher 2 | . 2 . . . . . . . . . . . Swarmer 26 | . 3 9 . 3 4 . 4 . . . 3 . Grunt 23 | . 6 . . . 5 2 5 . 1 . 1 3 Duelist 4 | . . . . . 2 . 2 . . . . . Sentry 6 | . . . . . 3 . . . . . . 3 Hunter 2 | . . . . . 1 . . . . . . 1 Programmer 2 | . . . . . . . . 1 . . 1 . Best Kill Streak 10 | . 7 3 . 3 10 2 4 1 2 . 3 2 Combat Bots Only 7 | . 3 3 . 3 7 2 4 1 1 . 3 2 Max Kills in Single Turn 6 | . 3 3 . 1 6 1 2 1 1 . 2 1 Gunslinging 1 | . . . . . . . . . . . 1 . Exploded 4 | . 2 3 . . 4 . 2 1 1 . . . Melee . | . . . . . . . . . . . . . Uniques/NPCs Destroyed . | . . . . . . . . . . . . . Combat | -11 -10 -10 -10 -9 -8 -7 -7 -7 -6 -6 -6 -6 -------- Run | Yrd Mat Min Exi Min Mat Fac Low Low Fac Was Fac Ext Hostile Shots Fired 687 | . 44 24 . 10 65 1 54 28 34 5 42 380 Missed 246 | . 11 3 . 3 14 . 20 8 20 . 13 154 Damage Taken 6509 | . 480 304 . 64 797 74 687 336 143 220 492 2912 Core 1101 | . 99 . . 9 73 . 59 . 12 190 40 619 Absorbed by Shields . | . . . . . . . . . . . . . Regen/Repaired (Parts) 102 | . 102 . . . . . . . . . . . Core Remaining (%) 83 | 100 . . . 56 86 . . 91 . . . . Volleys Fired 238 | 4 43 9 . 5 45 4 42 4 3 . 22 57 Largest 2 | 1 2 2 . 1 2 2 2 2 2 . 2 2 Hottest 88 | 20 60 65 . 20 78 50 78 64 78 . 88 88 Shots Fired 419 | 4 82 15 . 5 83 8 78 8 6 . 44 86 Gun 343 | 4 73 4 . 5 51 8 70 4 2 . 44 78 Cannon 46 | . . 8 . . 30 . . . . . . 8 Launcher 30 | . 9 3 . . 2 . 8 4 4 . . . Special . | . . . . . . . . . . . . . Kinetic 329 | 4 73 12 . 5 81 8 70 4 2 . 22 48 Thermal 60 | . . . . . . . . . . . 22 38 Explosive 30 | . 9 3 . . 2 . 8 4 4 . . . Electromagnetic . | . . . . . . . . . . . . . Robot Hit Streak 15 | 1 11 8 . 10 9 6 13 3 4 . 13 15 Robot Miss Streak 5 | 1 5 3 . 1 4 1 3 2 1 . 4 4 Penetration Max . | . . . . . . . . . . . . . Secondary Targets 3 | . . . . . 1 . 1 . . . 1 . Max Gunslinging Chain 1 | . . . . . 1 . 1 . . . 1 . Shots Hit Robots 260 | 2 50 8 . 4 47 7 49 5 3 . 25 60 Core Hits 133 | . 33 8 . 3 30 6 18 3 5 . 9 18 Critical Kills 3 | . . . . . 2 . . . . . . 1 Critical Parts Destroyed 6 | . . . . . 3 . . . . . . 3 Critical Strikes 10 | . . . . . 5 . . . . . . 5 Burn 1 | . . . . . . . . . . . . 1 Destroy 8 | . . . . . 5 . . . . . . 3 Smash 1 | . . . . . . . . . . . . 1 Melee Attacks 1 | . . . . . . . . . . . . 1 Impact 1 | . . . . . . . . . . . . 1 Slashing . | . . . . . . . . . . . . . Piercing . | . . . . . . . . . . . . . Sneak Attacks . | . . . . . . . . . . . . . Combat Hostiles . | . . . . . . . . . . . . . Follow-up Attacks . | . . . . . . . . . . . . . Damage Inflicted 6572 | 40 1108 397 . 52 1341 119 1448 206 405 . 461 995 Guns 3559 | 40 578 23 . 52 522 119 813 62 15 . 449 886 Cannons 451 | . . 111 . . 293 . . . . . . 47 Explosions 2479 | . 526 261 . . 523 . 635 144 390 . . . Melee 54 | . . . . . . . . . . . . 54 Ramming 29 | . 4 2 . . 3 . . . . . 12 8 Kinetic 3347 | 40 578 134 . 52 815 119 813 62 15 . 234 485 Thermal 981 | . . . . . 318 . . . . . 215 448 Explosive 2161 | . 526 261 . . 205 . 635 144 390 . . . Electromagnetic . | . . . . . . . . . . . . . Impact 54 | . . . . . . . . . . . . 54 Slashing . | . . . . . . . . . . . . . Piercing . | . . . . . . . . . . . . . Highest Corruption 4 | . . . . . . 1 3 4 . . . . Average Corruption 2 | . . . . . . 1 2 3 . . . . Corruption Purged . | . . . . . . . . . . . . . Corruption Blocked . | . . . . . . . . . . . . . Effects 20 | . . . . . . 1 16 3 . . . . Message Errors 6 | . . . . . . 1 4 1 . . . . Matter Fused 7 | . . . . . . . 6 1 . . . . Heat Flow Errors 2 | . . . . . . . 2 . . . . . Energy Discharges 1 | . . . . . . . 1 . . . . . Parts Rejected 1 | . . . . . . . 1 . . . . . Parts Fused 1 | . . . . . . . 1 . . . . . Data Loss (minor) 1 | . . . . . . . 1 . . . . . Data Loss (major) 1 | . . . . . . . . 1 . . . . Overload Shots . | . . . . . . . . . . . . . Overflow Damage 204 | . 8 25 . . 104 . 11 . 2 . . 54 Projectiles 14 | . . 5 . . 9 . . . . . . . Explosions 136 | . 8 20 . . 95 . 11 . 2 . . . Melee 54 | . . . . . . . . . . . . 54 Knockbacks 5 | . . 2 . . 3 . . . . . . . Impact . | . . . . . . . . . . . . . Kinetic 4 | . . 2 . . 2 . . . . . . . Secondary 1 | . . . . . 1 . . . . . . . Self-Inflicted Damage 68 | . 16 . . . . . 52 . . . . . Shots 2 | . 1 . . . . . 1 . . . . . Rammed 5 | . 1 1 . . 1 . . . . . 2 . Targets Rammed 7 | . 1 1 . . 1 . . . . . 2 2 Kicked 2 | . . . . . . . . . . . . 2 Crushed . | . . . . . . . . . . . . . Highest Temperature 314 | . 41 6 . . 135 16 216 6 40 . 148 314 Average Temperature 80 | . 21 3 . . 41 8 44 4 18 . 62 165 Received Heat Transfer 1947 | . 210 . . . 405 9 144 12 54 . 135 978 Effects 3 | . . . . . . . . . . . . 3 Energy Bleed 2 | . . . . . . . . . . . . 2 Interference 1 | . . . . . . . . . . . . 1 Siege Activations . | . . . . . . . . . . . . . Robots Corrupted . | . . . . . . . . . . . . . Combat Hostiles . | . . . . . . . . . . . . . Parts Fried . | . . . . . . . . . . . . . Impact Corruptions 1 | . . . . . . . . . . . . 1 Robots Melted 1 | . . . . . . . . . . . . 1 Combat Hostiles 1 | . . . . . . . . . . . . 1 Parts Melted 5 | . . . . . . . 2 . . . . 3 Heat Transferred 1680 | . . . . . 200 . . . . . 444 1036 Parts Sabotaged . | . . . . . . . . . . . . . Parts Stolen . | . . . . . . . . . . . . . Parts Stripped . | . . . . . . . . . . . . . Power Chain Reactions . | . . . . . . . . . . . . . Alert | -11 -10 -10 -10 -9 -8 -7 -7 -7 -6 -6 -6 -6 ------- Run | Yrd Mat Min Exi Min Mat Fac Low Low Fac Was Fac Ext Peak Influence 290 | . 246 290 . 70 277 146 . . 43 35 96 181 Initial 126 | . . . . . 17 126 . . 28 . 10 31 Average 62 | . 87 226 . 28 70 99 . . 22 11 32 39 Maximum Alert Level 1 | . 1 1 . . 1 . . . . . . . Low Security (%) 94 | 100 94 11 . 100 92 100 . . 100 100 100 100 Level 1 5 | . 5 88 . . 7 . . . . . . . Level 2 . | . . . . . . . . . . . . . Level 3 . | . . . . . . . . . . . . . Level 4 . | . . . . . . . . . . . . . Level 5 . | . . . . . . . . . . . . . High Security . | . . . . . . . . . . . . . Max Security . | . . . . . . . . . . . . . Squads Dispatched 10 | . 1 . . . . 3 . . 3 . 2 1 Investigation 2 | . . . . . . 1 . . 1 . . . Extermination 4 | . . . . . . 1 . . 1 . 2 . Reinforcement 4 | . 1 . . . . 1 . . 1 . . 1 Assault . | . . . . . . . . . . . . . Garrison . | . . . . . . . . . . . . . Intercept . | . . . . . . . . . . . . . Searches Triggered . | . . . . . . . . . . . . . Construction Impeded 1 | . . . . . . . . . 1 . . . Haulers Reinforced . | . . . . . . . . . . . . . Active Scanning Responses . | . . . . . . . . . . . . . Cargo Convoy Interrupts 1 | . . . . . . . . . 1 . . . Stealth | -11 -10 -10 -10 -9 -8 -7 -7 -7 -6 -6 -6 -6 --------- Run | Yrd Mat Min Exi Min Mat Fac Low Low Fac Was Fac Ext Distress Signals 8 | . . . . . 2 . . . . . . 6 Communications Jammed . | . . . . . . . . . . . . . Distress Signals . | . . . . . . . . . . . . . Times Spotted 149 | . 26 15 . 5 27 4 22 2 6 7 8 27 Peak Tracking Total 8 | . 3 3 . 3 5 3 6 2 3 4 4 8 Tactical Retreats 20 | . . 2 . 1 3 . 4 1 2 2 1 4 Traps | -11 -10 -10 -10 -9 -8 -7 -7 -7 -6 -6 -6 -6 ------- Run | Yrd Mat Min Exi Min Mat Fac Low Low Fac Was Fac Ext Traps Triggered 4 | . . . . . . 1 . . 2 . . 1 Indirectly . | . . . . . . . . . . . . . Trap Hack Attempts . | . . . . . . . . . . . . . Triggered . | . . . . . . . . . . . . . Disarmed . | . . . . . . . . . . . . . Reprogrammed . | . . . . . . . . . . . . . Reused . | . . . . . . . . . . . . . Traps Extracted . | . . . . . . . . . . . . . Installed . | . . . . . . . . . . . . . Triggered 4 | . . . . . . . 2 . 2 . . . Machines | -11 -10 -10 -10 -9 -8 -7 -7 -7 -6 -6 -6 -6 ---------- Run | Yrd Mat Min Exi Min Mat Fac Low Low Fac Was Fac Ext Machines Disabled 8 | . 2 3 . . 2 . . . . . . 1 Max in Single Turn 3 | . 1 3 . . 2 . . . . . . 1 Garrison Access 1 | . . . . . 1 . . . . . . . Machines Repaired . | . . . . . . . . . . . . . Machines Dismantled . | . . . . . . . . . . . . . Machines Sabotaged . | . . . . . . . . . . . . . Overloaded Fab Kills . | . . . . . . . . . . . . . Hacking | -11 -10 -10 -10 -9 -8 -7 -7 -7 -6 -6 -6 -6 --------- Run | Yrd Mat Min Exi Min Mat Fac Low Low Fac Was Fac Ext Machines Accessed 39 | . 9 . 2 . 7 8 . . 4 . 6 3 Terminals 25 | . 6 . . . 6 4 . . 3 . 5 1 Fabricators 2 | . . . . . . 2 . . . . . . Repair Stations 1 | . 1 . . . . . . . . . . . Recycling Units 6 | . 2 . . . . . . . 1 . 1 2 Scanalyzers 2 | . . . . . . 2 . . . . . . Garrison Access 1 | . . . . . 1 . . . . . . . Total Hacks 98 | . 28 . 2 . 19 13 . . 13 . 12 11 Successful 57 | . 16 . 2 . 9 11 . . 6 . 7 6 Failed 41 | . 12 . . . 10 2 . . 7 . 5 5 Catastrophic 5 | . 1 . . . 1 . . . 3 . . . Database Lockouts . | . . . . . . . . . . . . . Manual 23 | . 3 . 2 . 11 1 . . 5 . 1 . Terminals 67 | . 19 . . . 18 5 . . 12 . 10 3 Fabricators 3 | . . . . . . 3 . . . . . . Repair Stations 4 | . 4 . . . . . . . . . . . Recycling Units 16 | . 5 . . . . . . . 1 . 2 8 Scanalyzers 5 | . . . . . . 5 . . . . . . Garrison Access 1 | . . . . . 1 . . . . . . . Terminal Hacks 34 | . 9 . 2 . 6 4 . . 5 . 6 2 Record 5 | . . . 1 . . . . . 2 . 1 1 Prototype ID Bank 5 | . 2 . . . 1 1 . . . . 1 . Open Door 1 | . . . . . . . . . . . 1 . Open DSF 1 | . . . . . . 1 . . . . . . Terminal Index 1 | . 1 . . . . . . . . . . . Alert Level 4 | . . . . . 1 1 . . 1 . . 1 Unreport Threat 1 | . . . . . . . . . 1 . . . Locate Traps 5 | . 3 . . . . . . . . . 2 . Dispatch Records 1 | . 1 . . . . . . . . . . . Hauler Manifests 4 | . 1 . . . 2 1 . . . . . . Zone Layout 5 | . 1 . . . 2 . . . 1 . 1 . Derelict Proto ID Bank 1 | . . . 1 . . . . . . . . . Fabricator Hacks 2 | . . . . . . 2 . . . . . . Load Schematic 1 | . . . . . . 1 . . . . . . Build 1 | . . . . . . 1 . . . . . . Repair Station Hacks 4 | . 4 . . . . . . . . . . . Scan Component 2 | . 2 . . . . . . . . . . . Repair 2 | . 2 . . . . . . . . . . . Recycling Unit Hacks 9 | . 3 . . . . . . . 1 . 1 4 Process 1 | . 1 . . . . . . . . . . . Report Inventory 6 | . 2 . . . . . . . 1 . 1 2 Retrieve Matter 1 | . . . . . . . . . . . . 1 Retrieve Components 1 | . . . . . . . . . . . . 1 Scanalyzer 5 | . . . . . . 5 . . . . . . Insert Component 2 | . . . . . . 2 . . . . . . Analyze 3 | . . . . . . 3 . . . . . . Garrison Access Hacks 1 | . . . . . 1 . . . . . . . Seal Access 1 | . . . . . 1 . . . . . . . Unauthorized Hacks 2 | . . . . . 2 . . . . . . . Terminals 2 | . . . . . 2 . . . . . . . Assimilate 1 | . . . . . 1 . . . . . . . Botnet 1 | . . . . . 1 . . . . . . . Fabricators . | . . . . . . . . . . . . . Repair Stations . | . . . . . . . . . . . . . Recycling Units . | . . . . . . . . . . . . . Scanalyzers . | . . . . . . . . . . . . . Garrison Access . | . . . . . . . . . . . . . Data Cores Recovered . | . . . . . . . . . . . . . Used . | . . . . . . . . . . . . . Hacking Detections 26 | . 7 . . . 6 5 . . 3 . 3 2 Full Trace Events 1 | . . . . . . 1 . . . . . . Feedback Events . | . . . . . . . . . . . . . Feedback Blocked . | . . . . . . . . . . . . . Robot Schematics Acquired . | . . . . . . . . . . . . . Robots Built . | . . . . . . . . . . . . . Authchips . | . . . . . . . . . . . . . Time . | . . . . . . . . . . . . . Total Robot Build Rating . | . . . . . . . . . . . . . Part Schematics Acquired 2 | . . . . . . 2 . . . . . . Parts Built 2 | . . . . . . 2 . . . . . . Authchips . | . . . . . . . . . . . . . Time 73 | . . . . . . 73 . . . . . . Total Part Build Rating 6 | . . . . . . 6 . . . . . . Parts Repaired 2 | . 2 . . . . . . . . . . . Time 52 | . 52 . . . . . . . . . . . Parts Recycled . | . . . . . . . . . . . . . Recycled Matter 121 | . 121 . . . . . . . . . . . Retrieved Matter . | . . . . . . . . . . . . . Retrieved Components 9 | . . . . . . . . . . . . 9 Parts Scanalyzed 2 | . . . . . . 2 . . . . . . Part Schematics Acquired 2 | . . . . . . 2 . . . . . . Parts Damaged . | . . . . . . . . . . . . . Bothacking | -11 -10 -10 -10 -9 -8 -7 -7 -7 -6 -6 -6 -6 ------------ Run | Yrd Mat Min Exi Min Mat Fac Low Low Fac Was Fac Ext Used RIF Installer . | . . . . . . . . . . . . . Robots Hacked . | . . . . . . . . . . . . . Non-combat . | . . . . . . . . . . . . . Combat . | . . . . . . . . . . . . . Robot Hacks Applied . | . . . . . . . . . . . . . Relay Couplers Released . | . . . . . . . . . . . . . Fabnet Peak Effective % . | . . . . . . . . . . . . . Robots Rewired . | . . . . . . . . . . . . . Allies Hacked . | . . . . . . . . . . . . . Hacks Repelled . | . . . . . . . . . . . . . Allies | -11 -10 -10 -10 -9 -8 -7 -7 -7 -6 -6 -6 -6 -------- Run | Yrd Mat Min Exi Min Mat Fac Low Low Fac Was Fac Ext Total Allies 2 | . . . . . 1 . . . . 1 . . Largest Group 1 | . . . . . 1 . . . . 1 . . Highest-Rated Group 31 | . . . . . 10 . . . . 31 . . Highest-Rated Ally 31 | . . . . . 10 . . . . 31 . . Total Orders . | . . . . . . . . . . . . . Ally Attacks 9 | . . . . . . . . . . 9 . . Total Damage 144 | . . . . . . . . . . 144 . . Kills . | . . . . . . . . . . . . . Allies Corrupted . | . . . . . . . . . . . . . Allies Melted . | . . . . . . . . . . . . . Intel | -11 -10 -10 -10 -9 -8 -7 -7 -7 -6 -6 -6 -6 ------- Run | Yrd Mat Min Exi Min Mat Fac Low Low Fac Was Fac Ext Robot Analysis Total . | . . . . . . . . . . . . . Derelict Logs Recovered 4 | . . . . 2 . . 2 . . . . . Drone Launches . | . . . . . . . . . . . . . Drone Recoveries . | . . . . . . . . . . . . . Exploration | -11 -10 -10 -10 -9 -8 -7 -7 -7 -6 -6 -6 -6 ------------- Run | Yrd Mat Min Exi Min Mat Fac Low Low Fac Was Fac Ext Turns Passed 9699 | 83 1608 312 375 615 1743 601 802 238 880 238 1011 1193 Spaces Moved 6446 | 41 819 174 232 490 870 473 1149 252 558 188 499 701 Core 129 | 2 . 43 . . . . . . . 55 13 16 Treads 2927 | 39 819 131 232 66 857 2 . . . . 401 380 Legs 390 | . . . . . . . . . . . 85 305 Wheels 2157 | . . . . 424 13 318 459 252 558 133 . . Hover . | . . . . . . . . . . . . . Flight 843 | . . . . . . 153 690 . . . . . Fastest Speed 27 | 50 160 50 160 90 105 27 27 90 90 90 100 50 Average Speed 117 | 154 160 132 160 110 160 69 57 90 90 93 151 140 Slowest Speed 190 | 160 160 160 160 160 165 165 112 90 90 105 160 190 Overloaded Moves . | . . . . . . . . . . . . . Propulsion Burnouts . | . . . . . . . . . . . . . Robots Hopped . | . . . . . . . . . . . . . Cave-ins Triggered . | . . . . . . . . . . . . . Exploration Rate (%) 50 | 4 97 26 61 95 62 14 96 46 11 81 12 51 Regions Visited 12 Branch Regions 6 Pre-discovered Areas . | . . . . . . . . . . . . . Known Exits Taken 1 | . . . . . . . . . . . 1 . Unknown Exits Taken 9 | 1 1 1 1 1 1 1 1 1 . . . . Scrap Searched 11 | . . 1 . 2 . . 8 . . . . . Spaces Dug 49 | . 27 . . . 1 . 21 . . . . . Terrain Destroyed 313 | . 40 24 . . 64 . 105 55 21 . . 4 Melee . | . . . . . . . . . . . . . Projectile 19 | . . . . . 15 . . . . . . 4 AOE 294 | . 40 24 . . 49 . 105 55 21 . . . Terrain Rammed . | . . . . . . . . . . . . . Walls Destroyed . | . . . . . . . . . . . . . Machines Disabled . | . . . . . . . . . . . . . Actions | -11 -10 -10 -10 -9 -8 -7 -7 -7 -6 -6 -6 -6 --------- Run | Yrd Mat Min Exi Min Mat Fac Low Low Fac Was Fac Ext Total 8197 | 54 1025 236 236 555 1141 738 1237 255 929 250 714 827 Wait 1301 | . 131 48 . 51 166 229 33 . 359 62 169 53 Move 6435 | 40 818 173 231 489 869 472 1148 251 558 187 498 701 Hop . | . . . . . . . . . . . . . Pick Up 73 | 4 9 . 1 4 33 9 2 . 1 1 8 1 Fast Attach 32 | 6 4 . . 4 3 . 1 . . . 8 6 Attach 33 | . 1 . 4 . 5 3 7 . 5 . 3 5 Detach 3 | . . . . 1 1 1 . . . . . . Swap 54 | . 16 5 . . 14 10 4 . 3 . 1 1 Drop 20 | . 2 . . 1 4 10 . . . . 3 . Fire 238 | 4 43 9 . 5 45 4 42 4 3 . 22 57 Melee 1 | . . . . . . . . . . . . 1 Ram . | . . . . . . . . . . . . . Kick 2 | . . . . . . . . . . . . 2 Crush 5 | . 1 1 . . 1 . . . . . 2 . Escape Stasis . | . . . . . . . . . . . . . Rewire . | . . . . . . . . . . . . . Trap . | . . . . . . . . . . . . . Miscellaneous . | . . . . . . . . . . . . . Route ------- -11/Scrapyard -10/Materials (discovered 4 exits: [*Mat x3] / [*Min]) -10/Mines -10/Exiles -9/Mines -8/Materials (discovered 2 exits: *Fac x2) -7/Factory (discovered 4 exits: *Fac / Sto / [*Low x2]) -7/Lower Caves -7/Lower Caves -6/Factory (discovered 2 exits: Low / Ext) -6/Waste -6/Factory -6/Extension History --------- Turn | Location | Event 25 | -11/Scrapyard | Discovered new exit (range 14) 84 | -11/Scrapyard | Entered Materials 271 | -10/Materials | Discovered new exit (range 5) 306 | -10/Materials | Build established: Mutant 387 | -10/Materials | Discovered new exit (range 16) 927 | -10/Materials | Discovered new exit (range 6) 1093 | -10/Materials | Repaired Lgt. Treads 1121 | -10/Materials | Repaired Lgt. Treads 1132 | -10/Materials | Discovered new exit (range 7) 1692 | -10/Materials | Entered Mines 1810 | -10/Mines | Deemed a non-threat by the Exiles lab entrance 1810 | -10/Mines | Discovered new exit (range 5) 1959 | -10/Mines | Assembled infested the area 1983 | -10/Mines | Released all parts (5) 2004 | -10/Mines | Entered Exiles 2047 | -10/Exiles | Met 8R-AWN 2076 | -10/Exiles | Met EX-HEX 2119 | -10/Exiles | Met EX-BIN 2136 | -10/Exiles | Aligned with FarCom system 2138 | -10/Exiles | Given EX-Vault access code 2175 | -10/Exiles | Opened EX-Vault 2223 | -10/Exiles | Found Lightpack 2.0 2257 | -10/Exiles | Warned to stay clear of 0b10 Research branches 2302 | -10/Exiles | Met EX-DEC 2361 | -10/Exiles | Discovered new exit (range 12) 2379 | -10/Exiles | Left Exiles lab with Lightpack 2.0 2379 | -10/Exiles | Entered Mines 2527 | -9/Mines | Learned Materials stockpile data 2828 | -9/Mines | Discovered new exit (range 8) 2864 | -9/Mines | A weapon hastily lodged in a ceiling crevice suddenly fell to the ground 2994 | -9/Mines | Entered Materials 2994 | -8/Materials | Evolved 4 slots: Propulsion x2, Utility x2 3283 | -8/Materials | Build established: Hauler-Mutant 4164 | -8/Materials | Discovered new exit (range 11) 4657 | -8/Materials | Destroyed 7 combat bots 4702 | -8/Materials | Discovered new exit (range 16) 4737 | -8/Materials | Entered Factory 4737 | -7/Factory | Evolved 2 slots: Utility x2 4738 | -7/Factory | Identified exit to Storage 4749 | -7/Factory | Identified exit to DSF 5055 | -7/Factory | Discovered new exit (range 5) 5159 | -7/Factory | Discovered new exit (range 5) 5251 | -7/Factory | Fabricated Cesium-ion Thruster (x2) 5337 | -7/Factory | Discovered new exit (range 6) 5338 | -7/Factory | Entered Lower Caves 5488 | -7/Lower Caves | Learned location of 1 exit from Factory 5498 | -7/Lower Caves | Lost 3 parts (1p1n1u) 5619 | -7/Lower Caves | Encountered a Warlord checkpoint 5668 | -7/Lower Caves | Attracted the attention of an 0b10 outpost 5700 | -7/Lower Caves | Lost 3 parts (3n) 5972 | -7/Lower Caves | Learned 4 Factory zone layouts 6049 | -7/Lower Caves | Discovered new exit (range 6) 6140 | -7/Lower Caves | Entered another Lower Caves area 6201 | -7/Lower Caves | Spotted B-75 Beast 6370 | -7/Lower Caves | Discovered new exit (range 10) 6378 | -7/Lower Caves | Entered Factory 6378 | -6/Factory | Evolved 2 slots: Propulsion x1, Utility x1 6379 | -6/Factory | Identified exit to Lower Caves 6380 | -6/Factory | Identified exit to Extension 7120 | -6/Factory | Cargo convoy interrupted 7258 | -6/Factory | Sucked down chute 7258 | -6/Factory | Entered Waste 7259 | -6/Waste | Met a frightened Derelict 7274 | -6/Waste | Spotted C-40 Crusher 7314 | -6/Waste | Spotted C-40 Crusher 7332 | -6/Waste | Spotted C-40 Crusher 7356 | -6/Waste | Spotted C-40 Crusher 7363 | -6/Waste | Spotted C-40 Crusher 7367 | -6/Waste | Crushed by Compactor (1 part destroyed, 2 dropped) 7430 | -6/Waste | Crushed by Compactor (1 part destroyed, 1 dropped) 7433 | -6/Waste | Crushed by Compactor (0 parts destroyed, 1 dropped) 7439 | -6/Waste | Spotted C-40 Crusher 7440 | -6/Waste | Crushed by Compactor (1 part destroyed, 1 dropped) 7481 | -6/Waste | Discovered new exit (range 10) 7496 | -6/Waste | Entered Factory 8408 | -6/Factory | Discovered exit to Extension (range 10) 8507 | -6/Factory | Entered Extension 9230 | -6/Extension | Core integrity fell below 50% 9244 | -6/Extension | Lost 7 parts (1p4n2w) 9302 | -6/Extension | Lost 3 parts (1p1n1w) 9575 | -6/Extension | Disrupted transfer network 9667 | -6/Extension | Spotted B-75 Beast 9682 | -6/Extension | Spotted B-75 Beast 9694 | -6/Extension | Core integrity fell below 20% 9700 | -6/Extension | Destroyed by S-27 Virus with Autogun Last Messages --------------- 09667_ U-05 Engineer destroyed. 09669_ Carbon-fiber Leg destroyed. 09671_ U-05 Engineer destroyed. 09673_ S-27 Virus suffers critical hit (Destroy). 09673_ S-27 Virus destroyed. 09673_ Flexi-carbon Leg destroyed. 09678_ Carbon-fiber Leg destroyed. 09680_ Critical hit (Meltdown: +330). 09684_ Carbon-fiber Leg destroyed. 09686_ Lgt. Nuclear Core destroyed. 09688_ Knocked back. 09689_ Enh. Autogun destroyed. 09691_ Lightpack 2.0 destroyed. 09691_ Door Terminal disabled. 09691_ Carbon-fiber Leg destroyed. 09691_ Hvy. Machine Gun destroyed. 09691_ Mak. System Shield destroyed. 09691_ Critical hit (Blast). 09694_ Acquired 5 matter. Map ----- +----------------------------------------------------+ | # *[ ### #??????????????????????????????????????? | | # !""# #??????????????????????????????????????? | | #"""* Y"# #??????????????????????????????????????? | | #"Y [ ""# #??????????????????????????????????????? | | #""" =### #??????????????????????????????????????? | | # !#?# #??????????????????????????????????????? | | ##T####?# #??????????????????????????????????????? | | ?###????# #??????????????????????????????????????? | | ????????# #??????????????????????????????????????? | | ????????# #??????????????????????????????????????? | | ????????# #??????????????????????????????????????? | | ????????+ #??????????????????????????????????????? | | ????????# #????????? ????????????????????????????? | | ????????# #????????# ????????????????????????????? | | ????????# #????????# #???????????????????????????? | | ????????# #????????# #???????????????????????????? | | ????????# #?######?# #???????????????????????????? | | ??????###w### ## ### ###?????????????????????????? | | ??????#"" "" "" ""#?????????????????????????? | | ??????# " " " " #?????????????????????????? | | ??????# #?????????????????????????? | | ??????# #???????#?????????????????? | | ####### #######;#########?????????? | | ????????? | | B R ????????? | | % B s @ ????????? | | %[ " s ????????? | | =%"%" BB ????????? | | ####### " BB ;################?????????? | | ??????#%!!* s ##????????????????????????? | | ??????# *!! #?????????????????????????? | | ?????## [!/ #?????????????????????????? | | ?????#" #?????????????????????????? | | ?????####### #"""#;#####?????????????????????????? | | ???????????###???###?????????????????????????????? | | ?????????????????????????????????????????????????? | | | | | | | | | | | | | | | | | | | | | | | | | | | | | +----------------------------------------------------+ Best States ------------- Heat Dissipation 37 Energy Generation 18 Energy Capacity 310 Matter Stores 300 Matter Capacity 300 Sight Range 16 Terrain Scan Range 14 Terrain Scan Density 10 ECM Strength 1 Evasion (%) 64 Recoil Reduction 5 Offensive Hacking 31 Defensive Hacking 23 Item Schematics ----------------- Cesium-ion Thruster | -7/Factory | Scanalyzed Enh. Autogun | -7/Factory | Scanalyzed Robot Schematics ------------------ None Fabricated ------------ Cesium-ion Thruster | x2 | -7/Factory Alien Tech Used ----------------- None Achievements -------------- None Challenges ------------ None Game ------ Seed LightpackMetafiberShifter Manual? 0 Play Time 02:09:38 Cumulative 38.1 hours Start 2024.04.06 @ 15:32:35 End 2024.04.06 @ 18:06:23 Sessions 3 Manual Loads 0 Difficulty Rogue Special Mode None Game No. 71 Rogue 71 Adventurer 0 Explorer 0 Win Type - Total 0 Types 0/0/0/0/0/0/0/0/0 Lore% 23 Gallery% 23 Achievement% 23 Wizard Run 0 Options --------- Layout 1 ASCII 0 Keyboard 0 Movement Mouse Keybinds 0 Fullscreen 2 Font 24/Smallcaps Map View 50x35 Zoom Use 0% Tactical HUD 1 Map Filters NONE Filters NONE Steam 1 RUN: d323b4bc-796a-4009-9db0-a045f4f69062